{"text_format":"1","workbook":"xlsx","n_sheets":3,"sheets":["Troll3","Piletid","Sündmusprotseduurid"],"not_rendered":{"charts":0,"images":0,"macros":1,"external_links":0,"defined_names":5,"comments":0,"pivot_tables":0},"unopened":[],"bounds":{"document_bytes":16777216,"sheet_cells":100000,"rows_first":2000,"rows_last":500,"rows_between":2000,"halvings":0,"cell_chars":16384,"cell_head_chars":4096},"cells_cut":0,"cells_raw":0,"read":"whole","date_system":"1900"}

{"sheet":"Troll3","index":0,"n_rows":116,"n_cols":21,"rows_kept":116,"cut":false,"hidden":false,"merged":[]}
[]
[]
[]
[]
[]
[]
[]
[]
[]
[]
[]
[]
[]
[]
[]
[]
[]
[]
[null,null,null,null,null,null,null,null,null,null,null,null,null,null,null,null,null,null,"Kiirklahvikorraldusega sidumiseks Alt+F8, Options"]
[]
["Bussi 83 sõiduplaan Mustamäe-Kaubamaja"]
["peatus KEEMIA",null,{"$f":"_xlfn.FORMULATEXT(C24)","v":"=MID($B24;C$23;2)"}]
[null,null,1,3,5,7,9,11,null,null,null,null,null,null,null,null,"Kellaajad"]
["5","223752",{"$f":"MID($B24,C$23,2)","v":"22"},{"$f":"MID($B24,D$23,2)","v":"37"},"52",{"$f":"MID($B24,F$23,2)","v":""},"","",null,{"$f":"IFERROR(TIME($A24,C24,0),\"\")","v":"05:22:00"},{"$f":"IFERROR(TIME($A24,D24,0),\"\")","v":"05:37:00"},"05:52:00","","","",null,"05:22:00",null,"praegu",{"$f":"NOW()-TODAY()","v":"09:44:02.220"},{"$f":"_xlfn.FORMULATEXT(praegu)","v":"=NOW()-TODAY()"}]
["6","0722334454",{"$f":"MID($B25,C$23,2)","v":"07"},"22","33","44","54","",null,{"$f":"IFERROR(TIME($A25,C25,0),\"\")","v":"06:07:00"},{"$f":"IFERROR(TIME($A25,D25,0),\"\")","v":"06:22:00"},{"$f":"IFERROR(TIME($A25,E25,0),\"\")","v":"06:33:00"},{"$f":"IFERROR(TIME($A25,F25,0),\"\")","v":"06:44:00"},{"$f":"IFERROR(TIME($A25,G25,0),\"\")","v":"06:54:00"},{"$f":"IFERROR(TIME($A25,H25,0),\"\")","v":""},null,"05:37:00",null,"mitmes",{"$f":"MATCH(praegu,Kellaajad,1)","v":23},{"$f":"_xlfn.FORMULATEXT(mitmes)","v":"=MATCH(praegu;Kellaajad;1)"}]
["7","051526364757","05","15","26","36","47","57",null,"07:05:00","07:15:00","07:26:00","07:36:00","07:47:00","07:57:00",null,"05:52:00",null,"jargmine",{"$f":"IFERROR(INDEX(Kellaajad,mitmes+1),INDEX(Kellaajad,1))","v":"09:52:00"},{"$f":"_xlfn.FORMULATEXT(jargmine)","v":"=IFERROR(INDEX(Kellaajad;mitmes+1);INDEX(Kellaajad;1))"}]
["8","0718294153","07","18","29","41","53","",null,"08:07:00","08:18:00","08:29:00","08:41:00","08:53:00","",null,"06:07:00",null,"ylejargmine",{"$f":"IF(ISERROR(INDEX(Kellaajad,mitmes+1)),INDEX(Kellaajad,2),IF(ISERROR(INDEX(Kellaajad,mitmes+2)),INDEX(Kellaajad,1),INDEX(Kellaajad,mitmes+2)))","v":"10:04:00"},{"$f":"_xlfn.FORMULATEXT(ylejargmine)","v":"=IF(ISERROR(INDEX(Kellaajad;mitmes+1));INDEX(Kellaajad;2);IF(ISERROR(INDEX(Kellaajad;mitmes+2));INDEX(Kellaajad;1);INDEX(Kellaajad;mitmes+2)))"}]
["9","0517284052","05","17","28","40","52","",null,"09:05:00","09:17:00","09:28:00","09:40:00","09:52:00","",null,"06:22:00"]
["10","0416284052","04","16","28","40","52","",null,"10:04:00","10:16:00","10:28:00","10:40:00","10:52:00","",null,"06:33:00"]
["11","0416284052","04","16","28","40","52","",null,"11:04:00","11:16:00","11:28:00","11:40:00","11:52:00","",null,"06:44:00"]
["12","0416284052","04","16","28","40","52","",null,"12:04:00","12:16:00","12:28:00","12:40:00","12:52:00","",null,"06:54:00"]
["13","0416284052","04","16","28","40","52","",null,"13:04:00","13:16:00","13:28:00","13:40:00","13:52:00","",null,"07:05:00"]
["14","041628394959","04","16","28","39","49","59",null,"14:04:00","14:16:00","14:28:00","14:39:00","14:49:00","14:59:00",null,"07:15:00"]
["15","0919293950","09","19","29","39","50","",null,"15:09:00","15:19:00","15:29:00","15:39:00","15:50:00","",null,"07:26:00"]
["16","001121324354","00","11","21","32","43","54",null,"16:00:00","16:11:00","16:21:00","16:32:00","16:43:00","16:54:00",null,"07:36:00"]
["17","0516273849","05","16","27","38","49","",null,"17:05:00","17:16:00","17:27:00","17:38:00","17:49:00","",null,"07:47:00"]
["18","0011223548","00","11","22","35","48","",null,"18:00:00","18:11:00","18:22:00","18:35:00","18:48:00","",null,"07:57:00"]
["19","0114274053","01","14","27","40","53","",null,"19:01:00","19:14:00","19:27:00","19:40:00","19:53:00","",null,"08:07:00"]
["20","0720334558","07","20","33","45","58","",null,"20:07:00","20:20:00","20:33:00","20:45:00","20:58:00","",null,"08:18:00"]
["21","11243750","11","24","37","50","","",null,"21:11:00","21:24:00","21:37:00","21:50:00","","",null,"08:29:00"]
["22","0316294257","03","16","29","42","57","",null,"22:03:00","22:16:00","22:29:00","22:42:00","22:57:00","",null,"08:41:00"]
["23","122742","12","27","42","","","",null,{"$f":"IFERROR(TIME($A42,C42,0),\"\")","v":"23:12:00"},{"$f":"IFERROR(TIME($A42,D42,0),\"\")","v":"23:27:00"},{"$f":"IFERROR(TIME($A42,E42,0),\"\")","v":"23:42:00"},{"$f":"IFERROR(TIME($A42,F42,0),\"\")","v":""},{"$f":"IFERROR(TIME($A42,G42,0),\"\")","v":""},{"$f":"IFERROR(TIME($A42,H42,0),\"\")","v":""},null,"08:53:00"]
[null,null,null,null,null,null,null,null,null,null,null,null,null,null,null,null,"09:05:00"]
[null,null,null,null,null,null,null,null,null,null,null,null,null,null,null,null,"09:17:00"]
[null,null,null,null,null,null,null,null,null,null,null,null,null,null,null,null,"09:28:00"]
[null,null,null,null,null,null,null,null,null,null,null,null,null,null,null,null,"09:40:00"]
[null,null,null,null,null,null,null,null,null,null,null,null,null,null,null,null,"09:52:00"]
[null,null,null,null,null,null,null,null,null,null,null,null,null,null,null,null,"10:04:00"]
[null,null,null,null,null,null,null,null,null,null,null,null,null,null,null,null,"10:16:00"]
[null,null,null,null,null,null,null,null,null,null,null,null,null,null,null,null,"10:28:00"]
[null,null,null,null,null,null,null,null,null,null,null,null,null,null,null,null,"10:40:00"]
[null,null,null,null,null,null,null,null,null,null,null,null,null,null,null,null,"10:52:00"]
[null,null,null,null,null,null,null,null,null,null,null,null,null,null,null,null,"11:04:00"]
[null,null,null,null,null,null,null,null,null,null,null,null,null,null,null,null,"11:16:00"]
[null,null,null,null,null,null,null,null,null,null,null,null,null,null,null,null,"11:28:00"]
[null,null,null,null,null,null,null,null,null,null,null,null,null,null,null,null,"11:40:00"]
[null,null,null,null,null,null,null,null,null,null,null,null,null,null,null,null,"11:52:00"]
[null,null,null,null,null,null,null,null,null,null,null,null,null,null,null,null,"12:04:00"]
[null,null,null,null,null,null,null,null,null,null,null,null,null,null,null,null,"12:16:00"]
[null,null,null,null,null,null,null,null,null,null,null,null,null,null,null,null,"12:28:00"]
[null,null,null,null,null,null,null,null,null,null,null,null,null,null,null,null,"12:40:00"]
[null,null,null,null,null,null,null,null,null,null,null,null,null,null,null,null,"12:52:00"]
[null,null,null,null,null,null,null,null,null,null,null,null,null,null,null,null,"13:04:00"]
[null,null,null,null,null,null,null,null,null,null,null,null,null,null,null,null,"13:16:00"]
[null,null,null,null,null,null,null,null,null,null,null,null,null,null,null,null,"13:28:00"]
[null,null,null,null,null,null,null,null,null,null,null,null,null,null,null,null,"13:40:00"]
[null,null,null,null,null,null,null,null,null,null,null,null,null,null,null,null,"13:52:00"]
[null,null,null,null,null,null,null,null,null,null,null,null,null,null,null,null,"14:04:00"]
[null,null,null,null,null,null,null,null,null,null,null,null,null,null,null,null,"14:16:00"]
[null,null,null,null,null,null,null,null,null,null,null,null,null,null,null,null,"14:28:00"]
[null,null,null,null,null,null,null,null,null,null,null,null,null,null,null,null,"14:39:00"]
[null,null,null,null,null,null,null,null,null,null,null,null,null,null,null,null,"14:49:00"]
[null,null,null,null,null,null,null,null,null,null,null,null,null,null,null,null,"14:59:00"]
[null,null,null,null,null,null,null,null,null,null,null,null,null,null,null,null,"15:09:00"]
[null,null,null,null,null,null,null,null,null,null,null,null,null,null,null,null,"15:19:00"]
[null,null,null,null,null,null,null,null,null,null,null,null,null,null,null,null,"15:29:00"]
[null,null,null,null,null,null,null,null,null,null,null,null,null,null,null,null,"15:39:00"]
[null,null,null,null,null,null,null,null,null,null,null,null,null,null,null,null,"15:50:00"]
[null,null,null,null,null,null,null,null,null,null,null,null,null,null,null,null,"16:00:00"]
[null,null,null,null,null,null,null,null,null,null,null,null,null,null,null,null,"16:11:00"]
[null,null,null,null,null,null,null,null,null,null,null,null,null,null,null,null,"16:21:00"]
[null,null,null,null,null,null,null,null,null,null,null,null,null,null,null,null,"16:32:00"]
[null,null,null,null,null,null,null,null,null,null,null,null,null,null,null,null,"16:43:00"]
[null,null,null,null,null,null,null,null,null,null,null,null,null,null,null,null,"16:54:00"]
[null,null,null,null,null,null,null,null,null,null,null,null,null,null,null,null,"17:05:00"]
[null,null,null,null,null,null,null,null,null,null,null,null,null,null,null,null,"17:16:00"]
[null,null,null,null,null,null,null,null,null,null,null,null,null,null,null,null,"17:27:00"]
[null,null,null,null,null,null,null,null,null,null,null,null,null,null,null,null,"17:38:00"]
[null,null,null,null,null,null,null,null,null,null,null,null,null,null,null,null,"17:49:00"]
[null,null,null,null,null,null,null,null,null,null,null,null,null,null,null,null,"18:00:00"]
[null,null,null,null,null,null,null,null,null,null,null,null,null,null,null,null,"18:11:00"]
[null,null,null,null,null,null,null,null,null,null,null,null,null,null,null,null,"18:22:00"]
[null,null,null,null,null,null,null,null,null,null,null,null,null,null,null,null,"18:35:00"]
[null,null,null,null,null,null,null,null,null,null,null,null,null,null,null,null,"18:48:00"]
[null,null,null,null,null,null,null,null,null,null,null,null,null,null,null,null,"19:01:00"]
[null,null,null,null,null,null,null,null,null,null,null,null,null,null,null,null,"19:14:00"]
[null,null,null,null,null,null,null,null,null,null,null,null,null,null,null,null,"19:27:00"]
[null,null,null,null,null,null,null,null,null,null,null,null,null,null,null,null,"19:40:00"]
[null,null,null,null,null,null,null,null,null,null,null,null,null,null,null,null,"19:53:00"]
[null,null,null,null,null,null,null,null,null,null,null,null,null,null,null,null,"20:07:00"]
[null,null,null,null,null,null,null,null,null,null,null,null,null,null,null,null,"20:20:00"]
[null,null,null,null,null,null,null,null,null,null,null,null,null,null,null,null,"20:33:00"]
[null,null,null,null,null,null,null,null,null,null,null,null,null,null,null,null,"20:45:00"]
[null,null,null,null,null,null,null,null,null,null,null,null,null,null,null,null,"20:58:00"]
[null,null,null,null,null,null,null,null,null,null,null,null,null,null,null,null,"21:11:00"]
[null,null,null,null,null,null,null,null,null,null,null,null,null,null,null,null,"21:24:00"]
[null,null,null,null,null,null,null,null,null,null,null,null,null,null,null,null,"21:37:00"]
[null,null,null,null,null,null,null,null,null,null,null,null,null,null,null,null,"21:50:00"]
[null,null,null,null,null,null,null,null,null,null,null,null,null,null,null,null,"22:03:00"]
[null,null,null,null,null,null,null,null,null,null,null,null,null,null,null,null,"22:16:00"]
[null,null,null,null,null,null,null,null,null,null,null,null,null,null,null,null,"22:29:00"]
[null,null,null,null,null,null,null,null,null,null,null,null,null,null,null,null,"22:42:00"]
[null,null,null,null,null,null,null,null,null,null,null,null,null,null,null,null,"22:57:00"]
[null,null,null,null,null,null,null,null,null,null,null,null,null,null,null,null,"23:12:00"]
[null,null,null,null,null,null,null,null,null,null,null,null,null,null,null,null,"23:27:00"]
[null,null,null,null,null,null,null,null,null,null,null,null,null,null,null,null,"23:42:00"]

{"sheet":"Piletid","index":1,"n_rows":193,"n_cols":1,"rows_kept":193,"cut":false,"hidden":false,"merged":[]}
["Bussiajad"]
["01:00 - 03:25 (2:25h) ABuss OÜ"]
["E R L"]
["Tallinn - Tartu"]
["ABuss OÜ"]
["05:40 - 08:15 (2:35h) Tartu Bussikeskus"]
["E T K N R L P"]
["Tallinn - Põltsamaa - Tartu"]
["Arilix OÜ"]
["06:30 - 09:00 (2:30h) Lux Express"]
["E T K N R L P"]
["Tallinn - Tartu"]
["Lux Express Estonia AS"]
["07:00 - 09:30 (2:30h) Lux Express"]
["E T K N R L P"]
["Tallinn - Tartu"]
["Lux Express Estonia AS"]
["07:30 - 10:00 (2:30h) Lux Express"]
["E T K N R L P"]
["Tallinn - Tartu - Võru"]
["Lux Express Estonia AS"]
["08:00 - 10:30 (2:30h) Lux Express"]
["E T K N R L P"]
["Tallinn - Tartu"]
["Lux Express Estonia AS"]
["08:20 - 10:35 (2:15h) Esvil-Reisid AS"]
["E T K N R L P"]
["Tallinn-Tartu-Petseri-Pihkva"]
["Esvil-Reisid AS"]
["08:30 - 11:00 (2:30h) Lux Express"]
["E T K N R L P"]
["Tallinn - Tartu"]
["Lux Express Estonia AS"]
["09:00 - 11:35 (2:35h) MK Autobuss AS"]
["E T K N R L P"]
["Tallinn - Võru"]
["MK Autobuss AS"]
["09:00 - 11:30 (2:30h) Lux Express"]
["E T K N R L P"]
["Tallinn - Tartu"]
["Lux Express Estonia AS"]
["09:30 - 12:00 (2:30h) Lux Express"]
["E T K N R L P"]
["Tallinn - Tartu"]
["Lux Express Estonia AS"]
["10:00 - 12:30 (2:30h) Simple Express Lisabuss"]
["E T K N R L P"]
["Tallinn - Tartu"]
["Lux Express Estonia AS"]
["10:00 - 12:30 (2:30h) Lux Express"]
["E T K N R L P"]
["Tallinn - Tartu"]
["Lux Express Estonia AS"]
["10:00 - 12:30 (2:30h) OOO \"Ukrainskie Linija\""]
["E K R P"]
["Tallinn - Tartu - Kiiev"]
["OOO \"Ukrainskie Linija\""]
["10:30 - 13:00 (2:30h) Lux Express"]
["E T K N R L P"]
["Tallinn - Tartu - Võru"]
["Lux Express Estonia AS"]
["11:00 - 13:30 (2:30h) Lux Express"]
["E T K N R L P"]
["Tallinn - Tartu"]
["Lux Express Estonia AS"]
["11:30 - 14:00 (2:30h) Lux Express"]
["E T K N R L P"]
["Tallinn - Tartu"]
["Lux Express Estonia AS"]
["11:30 - 14:10 (2:40h) MK Autobuss AS"]
["E T K N L"]
["Tallinn - Tartu - Võru"]
["MK Autobuss AS"]
["11:30 - 14:10 (2:40h) MK Autobuss AS"]
["R P"]
["Tallinn - Tartu - Võru"]
["MK Autobuss AS"]
["12:00 - 14:30 (2:30h) Lux Express"]
["E T K N R L P"]
["Tallinn - Tartu"]
["Lux Express Estonia AS"]
["12:30 - 15:00 (2:30h) Lux Express"]
["E T K N R L P"]
["Tallinn - Tartu"]
["Lux Express Estonia AS"]
["12:30 - 15:00 (2:30h) Simple Express"]
["R P"]
["Tallinn - Tartu"]
["Lux Express Estonia AS"]
["12:45 - 15:15 (2:30h) Taisto Liinid"]
["E T K N R L P"]
["Tallinn - Tartu - Võru"]
["Taisto Liinid OÜ"]
["13:00 - 15:30 (2:30h) Lux Express"]
["E T K N R L P"]
["Tallinn - Tartu"]
["Lux Express Estonia AS"]
["13:30 - 16:00 (2:30h) Lux Express"]
["E T K N R L P"]
["Tallinn - Tartu"]
["Lux Express Estonia AS"]
["14:00 - 16:30 (2:30h) Lux Express"]
["E T K N R L P"]
["Tallinn - Tartu"]
["Lux Express Estonia AS"]
["14:15 - 16:45 (2:30h) Bussipartner OÜ"]
["E T K N R L P"]
["Tallinn - Võru"]
["Bussipartner OÜ"]
["14:30 - 17:00 (2:30h) Lux Express"]
["E T K N R L P"]
["Tallinn - Tartu"]
["Lux Express Estonia AS"]
["15:00 - 17:30 (2:30h) Lux Express Lisabuss"]
["E T K N R L P"]
["Tallinn - Tartu"]
["Lux Express Estonia AS"]
["15:00 - 17:30 (2:30h) Lux Express Lisabuss"]
["R P"]
["Tallinn - Tartu"]
["Lux Express Estonia AS"]
["15:30 - 18:00 (2:30h) Lux Express"]
["E T K N R L P"]
["Tallinn - Tartu - Võru"]
["Lux Express Estonia AS"]
["15:30 - 18:00 (2:30h) Simple Express"]
["R P"]
["Tallinn - Tartu"]
["Lux Express Estonia AS"]
["16:00 - 18:30 (2:30h) Lux Express"]
["E T K N R L P"]
["Tallinn - Tartu"]
["Lux Express Estonia AS"]
["16:30 - 19:00 (2:30h) Lux Express"]
["E T K N R L P"]
["Tallinn - Võru"]
["Lux Express Estonia AS"]
["17:00 - 19:30 (2:30h) Lux Express Lisabuss"]
["E T K N R L P"]
["Tallinn - Tartu"]
["Lux Express Estonia AS"]
["17:00 - 19:30 (2:30h) Lux Express Lisabuss"]
["R P"]
["Tallinn - Tartu"]
["Lux Express Estonia AS"]
["17:30 - 20:00 (2:30h) Lux Express"]
["E T K N R L P"]
["Tallinn - Tartu"]
["Lux Express Estonia AS"]
["18:00 - 20:30 (2:30h) Lux Express Lisabuss"]
["E T K N R L P"]
["Tallinn - Tartu"]
["Lux Express Estonia AS"]
["18:00 - 20:30 (2:30h) Lux Express Lisabuss"]
["N R L P"]
["Tallinn - Tartu"]
["Lux Express Estonia AS"]
["18:30 - 21:00 (2:30h) Lux Express"]
["E T K N R L P"]
["Tallinn - Tartu"]
["Lux Express Estonia AS"]
["19:00 - 21:30 (2:30h) Lux Express"]
["E T K N R L P"]
["Tallinn - Tartu"]
["Lux Express Estonia AS"]
["19:30 - 22:00 (2:30h) Lux Express"]
["E T K N R L P"]
["Tallinn - Tartu"]
["Lux Express Estonia AS"]
["20:00 - 22:30 (2:30h) Lux Express"]
["E T K N R L P"]
["Tallinn - Tartu - Luhamaa"]
["Lux Express Estonia AS"]
["20:30 - 23:00 (2:30h) Estonian Lines OÜ"]
["R P"]
["Tallinn - Tartu"]
["Estonian Lines OÜ"]
["21:00 - 23:30 (2:30h) Lux Express"]
["E T K N R L P"]
["Tallinn - Tartu"]
["Lux Express Estonia AS"]
["21:30 - 00:00 (2:30h) Taisto Liinid"]
["P"]
["Tallinn - Tartu - Võru"]
["Taisto Liinid OÜ"]
["22:00 - 00:30 (2:30h) Lux Express"]
["E T K N R L P"]
["Tallinn - Tartu"]
["Lux Express Estonia AS"]
["23:00 - 01:45 (2:45h) Lux Express"]
["E T K N R L P"]
["Tallinn - Tartu"]
["Lux Express Estonia AS"]

{"sheet":"Sündmusprotseduurid","index":2,"n_rows":4,"n_cols":1,"rows_kept":4,"cut":false,"hidden":false,"merged":[]}
["Ajad"]
["2024-11-20T09:43:44"]
["2024-11-20T09:43:57"]
["2024-11-20T09:44:02"]